[Event "TUR-ch Youth U14 2019"]
[Site "Belek"]
[Date "2019.01.25"]
[Round "9"]
[White "Tikvesli, Ceylin"]
[Black "Kara, Gulce Nehir"]
[Result "0-1"]
[ECO "B42"]
[WhiteElo "1677"]
[BlackElo "1702"]
[Annotator "NA RC"]
[PlyCount "120"]
[EventDate "2019.01.20"]
[EventType "swiss"]
[EventCountry "TUR"]
[SourceTitle "playchess.com"]
[Source "ChessBase"]
[SourceQuality "1"]
[TimeControl "5400+30"]

1. e4 {[%emt 0:00:30]} c5 {[%emt 0:02:30]} 2. Nf3 {[%emt 0:00:00]} e6 {[%emt 0:00:00]} 3. d4 {[%emt 0:00:00]} cxd4 {[%emt 0:00:00]} 4. Nxd4 {[%emt 0:00:30]} a6 {[%emt 0:00:00]} 5. Bd3 {[%emt 0:00:00]} Nf6 {[%emt 0:00:00]} 6. Qe2 {[%emt 0:00:00]} d6 {[%emt 0:00:30]} 7. c4 {[%emt 0:00:30]} Be7 {[%emt 0:00:30]} 8. Nc3 {[%emt 0:01:30]} Qc7 {[%emt 0:00:30]} 9. O-O {[%emt 0:00:30]} O-O {[%emt 0:00:30]} 10. b3 {[%emt 0:01:30]} b6 {[%emt 0:02:30]} 11. Bb2 {[%emt 0:00:30]} Bb7 {[%emt 0:00:30]} 12. Rfe1 {[%emt 0:00:30]} Nbd7 {[%emt 0:01:30]} 13. Rac1 {[%emt 0:02:30]} Rac8 {[%emt 0:03:30]} 14. h3 {[%emt 0:06:30]} Rfd8 {[%emt 0:06:30]} 15. Bb1 {[%emt 0:02:30]} Qb8 {[%emt 0:05:30]} 16. a3 {[%emt 0:07:30]} Bf8 {[%emt 0:12:30]} 17. Rcd1 {[%emt 0:05:30]} g6 {[%emt 0:14:30]} 18. Nf3 {[%emt 0:07:30]} Bg7 {[%emt 0:03:30]} 19. Nd2 {[%emt 0:07:30]} Re8 {[%emt 0:11:30]} 20. Qf1 {[%emt 0:05:30]} Rcd8 {[%emt 0:06:30]} 21. b4 {[%emt 0:06:30]} Qc7 {[%emt 0:04:30]} 22. Nf3 {[%emt 0:09:30]} Ne5 {[%emt 0:01:30]} 23. Nxe5 {[%emt 0:01:30]} dxe5 {[%emt 0:00:00]} 24. Bd3 {[%emt 0:00:30]} Nh5 {[%emt 0:01:00]} 25. g3 {[%emt 0:01:30]} Kh8 {[%emt 0:02:40]} 26. Bc1 {[%emt 0:00:30]} f5 {[%emt 0:01:58]} 27. Kh2 {[%emt 0:02:30]} Nf6 {[%emt 0:01:26]} 28. f3 {[%emt 0:00:30]} Rd7 {[%emt 0:01:31]} 29. g4 {[%emt 0:02:30]} Red8 {[%emt 0:00:53]} 30. Be3 {[%emt 0:01:30]} b5 {[%emt 0:03:05]} 31. Bc5 {[%emt 0:13:39]} bxc4 {[%emt 0:00:44]} 32. Bxc4 {[%emt 0:00:21]} fxe4 {[%emt 0:04:23]} 33. fxe4 {[%emt 0:04:03]} Rxd1 {[%emt 0:00:18]} 34. Rxd1 {[%emt 0:00:29]} Nxe4 {[%emt 0:00:37]} 35. Rxd8+ {[%emt 0:03:15]} Qxd8 {[%emt 0:00:30]} 36. Nxe4 {[%emt 0:00:30]} Bxe4 {[%emt 0:00:30]} 37. Bxa6 {[%emt 0:00:30]} Bh6 {[%emt 0:00:30]} 38. Bf2 {[%emt 0:00:30]} Bf4+ {[%emt 0:00:30]} 39. Kg1 {[%emt 0:00:30]} Qa8 {[%emt 0:00:30]} 40. Bc5 {[%emt 0:00:30]} Qd5 {[%emt 0:00:30]} 41. Bc4 {[%emt 0:05:43]} Qd2 {[%emt 0:07:49]} 42. Bf2 {[%emt 0:01:19]} Bd5 {[%emt 0:02:02]} 43. Bd3 {[%emt 0:01:29]} e4 {[%emt 0:00:18]} 44. Be2 {[%emt 0:00:36]} e3 {[%emt 0:00:18]} 45. Be1 {[%emt 0:00:13]} Qd4 {[%emt 0:00:03]} 46. Bg3 {[%emt 0:00:42]} e5 {[%emt 0:00:21]} 47. Bxf4 {[%emt 0:00:58]} exf4 {[%emt 0:00:03]} 48. Qc1 {[%emt 0:00:04]} f3 {[%emt 0:01:44]} 49. Qc8+ {[%emt 0:00:30]} Bg8 {[%emt 0:00:00]} 50. Qc2 {[%emt 0:00:29]} fxe2 {[%emt 0:00:15]} 51. Qxe2 {[%emt 0:00:05]} Bc4 {[%emt 0:00:00]} 52. Qe1 {[%emt 0:00:15]} e2+ {[%emt 0:00:19]} 53. Kg2 {[%emt 0:00:07]} Kg8 {[%emt 0:00:27]} 54. b5 {[%emt 0:00:10]} Qd1 {[%emt 0:01:07]} 55. Qa5 {[%emt 0:00:19]} Bd5+ {[%emt 0:00:07]} 56. Kf2 {[%emt 0:00:36]} Qf1+ {[%emt 0:00:30]} 57. Ke3 {[%emt 0:00:30]} e1=Q+ {[%emt 0:00:30]} 58. Qxe1 {[%emt 0:00:00]} Qxe1+ {[%emt 0:00:00]} 59. Kd4 {[%emt 0:00:09]} Bg2 {[%emt 0:00:00]} 60. Kc5 {[%emt 0:00:00]} Qe7+ {[%emt 0:00:00]} 0-1

[Event "TUR-ch Youth U14 2019"]
[Site "Belek"]
[Date "2019.01.25"]
[Round "9"]
[White "Akbay, Samet"]
[Black "Danaci, Ege"]
[Result "0-1"]
[ECO "B23"]
[WhiteElo "1657"]
[BlackElo "2143"]
[Annotator "ChessBase"]
[PlyCount "58"]
[EventDate "2019.01.20"]
[EventType "swiss"]
[EventCountry "TUR"]
[SourceTitle "playchess.com"]
[Source "ChessBase"]
[SourceQuality "1"]
[TimeControl "5400+30"]

1. e4 {[%emt 0:00:30]} c5 {[%emt 0:03:30]} 2. Nc3 {[%emt 0:00:00]} a6 {[%emt 0:00:30]} 3. f4 {[%emt 0:00:00]} b5 {[%emt 0:01:30]} 4. Nf3 {[%emt 0:00:30]} Bb7 {[%emt 0:00:30]} 5. d3 {[%emt 0:01:30]} e6 {[%emt 0:03:30]} 6. Be3 {[%emt 0:04:30]} d6 {[%emt 0:05:30]} 7. Qd2 {[%emt 0:01:30]} Nd7 {[%emt 0:02:30]} 8. Be2 {[%emt 0:00:30]} Ngf6 {[%emt 0:01:30]} 9. h3 {[%emt 0:05:30]} d5 {[%emt 0:02:30]} 10. e5 {[%emt 0:29:30]} d4 {[%emt 0:04:30]} 11. exf6 {[%emt 0:00:30]} dxe3 {[%emt 0:00:30]} 12. Qxe3 {[%emt 0:00:30]} Nxf6 {[%emt 0:00:00]} 13. f5 {[%emt 0:00:30]} Bd6 {[%emt 0:06:00]} 14. O-O {[%emt 0:10:30]} O-O {[%emt 0:03:30]} 15. fxe6 {[%emt 0:01:30]} Nh5 {[%emt 0:11:30]} 16. Ne5 {[%emt 0:05:30]} Qh4 {[%emt 0:17:30]} 17. Bxh5 {[%emt 0:10:30]} Qxh5 {[%emt 0:00:30]} 18. Nxf7 {[%emt 0:05:36]} Qg6 {[%emt 0:04:30]} 19. Qe2 {[%emt 0:02:45]} Bc7 {[%emt 0:05:30]} 20. h4 {[%emt 0:08:38]} Qg3 {[%emt 0:00:30]} 21. Ne4 {[%emt 0:00:37]} Qh2+ {[%emt 0:07:16]} 22. Kf2 {[%emt 0:00:04]} Qxh4+ {[%emt 0:00:28]} 23. Ke3 {[%emt 0:03:45]} Bxe4 {[%emt 0:01:05]} 24. dxe4 {[%emt 0:00:22]} Rae8 {[%emt 0:01:06]} 25. Qf3 {[%emt 0:05:00]} Rxe6 {[%emt 0:00:27]} 26. Rh1 {[%emt 0:00:58]} Qg3 {[%emt 0:01:17]} 27. Qxg3 {[%emt 0:00:11]} Bxg3 {[%emt 0:00:00]} 28. Rh3 {[%emt 0:00:50]} Bc7 {[%emt 0:00:00]} 29. Rxh7 {[%emt 0:00:34]} Bf4+ {[%emt 0:00:34]} 0-1

[Event "TUR-ch Youth U14 2019"]
[Site "Belek"]
[Date "2019.01.25"]
[Round "9"]
[White "Uysal, Ugur"]
[Black "Ozcan, Ilker"]
[Result "0-1"]
[ECO "B08"]
[WhiteElo "1585"]
[BlackElo "1672"]
[Annotator "NA"]
[PlyCount "66"]
[EventDate "2019.01.20"]
[EventType "swiss"]
[EventCountry "TUR"]
[SourceTitle "playchess.com"]
[Source "ChessBase"]
[SourceQuality "1"]
[TimeControl "5400+30"]

1. Nf3 {[%emt 0:00:30]} d6 {[%emt 0:00:30]} 2. d4 {[%emt 0:00:30]} g6 {[%emt 0:00:30]} 3. e4 {[%emt 0:00:00]} Bg7 {[%emt 0:00:00]} 4. Nc3 {[%emt 0:00:00]} Nf6 {[%emt 0:01:00]} 5. Be3 {[%emt 0:00:30]} O-O {[%emt 0:01:30]} 6. Qd2 {[%emt 0:00:00]} c6 {[%emt 0:01:30]} 7. Bh6 {[%emt 0:00:00]} b5 {[%emt 0:01:30]} 8. Bd3 {[%emt 0:01:30]} Bb7 {[%emt 0:02:30]} 9. h4 {[%emt 0:00:30]} Bxh6 {[%emt 0:08:30]} 10. Qxh6 {[%emt 0:00:30]} Ng4 {[%emt 0:00:00]} 11. Qg5 {[%emt 0:04:30]} h5 {[%emt 0:01:00]} 12. e5 {[%emt 0:04:30]} Kg7 {[%emt 0:02:30]} 13. Nh2 {[%emt 0:07:30]} Nxh2 {[%emt 0:09:30]} 14. Rxh2 {[%emt 0:00:30]} e6 {[%emt 0:00:30]} 15. Qf4 {[%emt 0:03:30]} f5 {[%emt 0:16:30]} 16. exd6 {[%emt 0:02:30]} Nd7 {[%emt 0:00:30]} 17. O-O-O {[%emt 0:00:30]} Qf6 {[%emt 0:00:30]} 18. Re1 {[%emt 0:05:30]} Rae8 {[%emt 0:01:30]} 19. Rh3 {[%emt 0:01:30]} a6 {[%emt 0:11:30]} 20. Rg3 {[%emt 0:18:30]} c5 {[%emt 0:03:30]} 21. dxc5 {[%emt 0:00:30]} e5 {[%emt 0:00:30]} 22. Qb4 {[%emt 0:02:30]} e4 {[%emt 0:01:30]} 23. Rge3 {[%emt 0:04:30]} Re5 {[%emt 0:02:30]} 24. Bxe4 {[%emt 0:11:30]} fxe4 {[%emt 0:06:30]} 25. Nxe4 {[%emt 0:00:30]} Qf4 {[%emt 0:10:15]} 26. c6 {[%emt 0:06:30]} Bxc6 {[%emt 0:00:55]} 27. Qc3 {[%emt 0:00:30]} Bxe4 {[%emt 0:00:24]} 28. g3 {[%emt 0:02:30]} Qf6 {[%emt 0:01:09]} 29. Qc7 {[%emt 0:04:43]} Rc5 {[%emt 0:02:39]} 30. Qxd7+ {[%emt 0:01:41]} Rf7 {[%emt 0:00:06]} 31. Qxf7+ {[%emt 0:00:59]} Kxf7 {[%emt 0:00:08]} 32. Rxe4 {[%emt 0:00:10]} Qxd6 {[%emt 0:00:07]} 33. Rf4+ {[%emt 0:01:04]} Rf5 {[%emt 0:00:27]} 0-1

[Event "TUR-ch Youth U14 2019"]
[Site "Belek"]
[Date "2019.01.25"]
[Round "9"]
[White "Ozturk, Nil"]
[Black "Tokat, Nehir"]
[Result "1/2-1/2"]
[ECO "B27"]
[WhiteElo "1319"]
[BlackElo "1665"]
[Annotator "NA"]
[PlyCount "70"]
[EventDate "2019.01.20"]
[EventType "swiss"]
[EventCountry "TUR"]
[SourceTitle "playchess.com"]
[Source "ChessBase"]
[SourceQuality "1"]
[TimeControl "5400+30"]

1. e4 {[%emt 0:00:30]} c5 {[%emt 0:00:30]} 2. Nf3 {[%emt 0:00:30]} b6 {[%emt 0:00:00]} 3. d4 {[%emt 0:14:30]} cxd4 {[%emt 0:00:00]} 4. Qxd4 {[%emt 0:00:00]} Nc6 {[%emt 0:00:30]} 5. Qa4 {[%emt 0:01:00]} g6 {[%emt 0:00:30]} 6. Bc4 {[%emt 0:11:30]} Bg7 {[%emt 0:06:30]} 7. O-O {[%emt 0:00:00]} e6 {[%emt 0:20:30]} 8. Re1 {[%emt 0:01:00]} Qc7 {[%emt 0:03:30]} 9. Na3 {[%emt 0:04:30]} a6 {[%emt 0:03:30]} 10. Bf1 {[%emt 0:00:30]} Bb7 {[%emt 0:04:30]} 11. Qb3 {[%emt 0:01:30]} Na5 {[%emt 0:14:30]} 12. Qd3 {[%emt 0:00:30]} Ne7 {[%emt 0:02:30]} 13. c3 {[%emt 0:08:30]} O-O {[%emt 0:04:30]} 14. g3 {[%emt 0:00:30]} d5 {[%emt 0:00:30]} 15. e5 {[%emt 0:06:30]} Nc4 {[%emt 0:01:30]} 16. Nxc4 {[%emt 0:07:30]} dxc4 {[%emt 0:00:30]} 17. Qe3 {[%emt 0:00:00]} Rfd8 {[%emt 0:03:30]} 18. Bg2 {[%emt 0:02:00]} Rd3 {[%emt 0:01:30]} 19. Qe2 {[%emt 0:00:30]} Rad8 {[%emt 0:04:30]} 20. Bf4 {[%emt 0:09:30]} Qd7 {[%emt 0:02:30]} 21. Nd4 {[%emt 0:09:30]} Bxg2 {[%emt 0:01:30]} 22. Kxg2 {[%emt 0:00:00]} Nc6 {[%emt 0:01:30]} 23. Nxc6 {[%emt 0:00:00]} Qxc6+ {[%emt 0:00:30]} 24. Qe4 {[%emt 0:00:00]} Qxe4+ {[%emt 0:04:09]} 25. Rxe4 {[%emt 0:00:00]} b5 {[%emt 0:00:05]} 26. a4 {[%emt 0:01:30]} Rd1 {[%emt 0:01:18]} 27. Rxd1 {[%emt 0:01:30]} Rxd1 {[%emt 0:00:02]} 28. axb5 {[%emt 0:00:30]} axb5 {[%emt 0:00:05]} 29. Rd4 {[%emt 0:00:00]} Rxd4 {[%emt 0:00:19]} 30. cxd4 {[%emt 0:01:00]} Kf8 {[%emt 0:03:18]} 31. Bd2 {[%emt 0:00:30]} Ke8 {[%emt 0:01:00]} 32. Kf3 {[%emt 0:00:30]} Kd7 {[%emt 0:01:39]} 33. Ke4 {[%emt 0:01:20]} Kc6 {[%emt 0:04:45]} 34. Bb4 {[%emt 0:04:24]} Bh6 {[%emt 0:02:45]} 35. f4 {[%emt 0:00:31]} Bg7 {[%emt 0:00:24]} 1/2-1/2

[Event "TUR-ch Youth U14 2019"]
[Site "Belek"]
[Date "2019.01.25"]
[Round "9"]
[White "Caglayan, Ezgisu"]
[Black "Eraslan, Yagmur"]
[Result "0-1"]
[ECO "D00"]
[WhiteElo "1199"]
[BlackElo "1567"]
[Annotator "NA RC"]
[PlyCount "84"]
[EventDate "2019.01.20"]
[EventType "swiss"]
[EventCountry "TUR"]
[SourceTitle "playchess.com"]
[Source "ChessBase"]
[SourceQuality "1"]
[TimeControl "5400+30"]

1. d4 {[%emt 0:00:30]} d5 {[%emt 0:00:30]} 2. f4 {[%emt 0:00:30]} Bf5 {[%emt 0:00:30]} 3. e3 {[%emt 0:00:30]} Nf6 {[%emt 0:00:00]} 4. Bd3 {[%emt 0:00:00]} e6 {[%emt 0:00:00]} 5. c3 {[%emt 0:00:00]} Bd6 {[%emt 0:00:30]} 6. Nf3 {[%emt 0:00:00]} O-O {[%emt 0:00:00]} 7. Na3 {[%emt 0:00:00]} a6 {[%emt 0:02:00]} 8. O-O {[%emt 0:00:30]} c5 {[%emt 0:02:30]} 9. Ne5 {[%emt 0:00:30]} Nc6 {[%emt 0:02:30]} 10. Qe2 {[%emt 0:00:30]} Qb6 {[%emt 0:16:30]} 11. Bxf5 {[%emt 0:02:30]} exf5 {[%emt 0:00:00]} 12. Rf3 {[%emt 0:00:30]} cxd4 {[%emt 0:03:00]} 13. exd4 {[%emt 0:00:30]} Bxa3 {[%emt 0:01:30]} 14. bxa3 {[%emt 0:00:30]} Nxd4 {[%emt 0:00:00]} 15. Qe3 {[%emt 0:09:30]} Nxf3+ {[%emt 0:00:00]} 16. Nxf3 {[%emt 0:01:30]} Qxe3+ {[%emt 0:01:30]} 17. Bxe3 {[%emt 0:02:30]} Ne4 {[%emt 0:00:30]} 18. Bd4 {[%emt 0:00:30]} Rac8 {[%emt 0:00:00]} 19. Rc1 {[%emt 0:03:30]} Nd6 {[%emt 0:01:00]} 20. a4 {[%emt 0:01:30]} Rc4 {[%emt 0:01:30]} 21. Be5 {[%emt 0:08:30]} Ne4 {[%emt 0:01:30]} 22. a5 {[%emt 0:02:30]} Rfc8 {[%emt 0:01:30]} 23. Rb1 {[%emt 0:01:30]} Nxc3 {[%emt 0:01:30]} 24. Bxc3 {[%emt 0:05:30]} Rxc3 {[%emt 0:00:00]} 25. Rxb7 {[%emt 0:01:30]} Rc1+ {[%emt 0:03:00]} 26. Kf2 {[%emt 0:00:30]} R1c2+ {[%emt 0:00:30]} 27. Kg3 {[%emt 0:00:00]} Rxa2 {[%emt 0:03:30]} 28. Ne5 {[%emt 0:01:00]} f6 {[%emt 0:08:30]} 29. Nf3 {[%emt 0:06:30]} Rxa5 {[%emt 0:03:30]} 30. Rb3 {[%emt 0:00:30]} Rb5 {[%emt 0:00:30]} 31. Ra3 {[%emt 0:01:30]} a5 {[%emt 0:00:30]} 32. h3 {[%emt 0:01:30]} Ra8 {[%emt 0:01:30]} 33. Nd4 {[%emt 0:01:30]} Rb4 {[%emt 0:00:00]} 34. Nc6 {[%emt 0:00:30]} Rb5 {[%emt 0:03:00]} 35. Nd4 {[%emt 0:00:30]} Rc5 {[%emt 0:00:00]} 36. Kh2 {[%emt 0:01:30]} a4 {[%emt 0:01:00]} 37. Ne6 {[%emt 0:01:30]} Rc4 {[%emt 0:01:30]} 38. Rd3 {[%emt 0:02:30]} a3 {[%emt 0:01:30]} 39. Nd4 {[%emt 0:01:30]} a2 {[%emt 0:00:30]} 40. Nb3 {[%emt 0:00:00]} Rb4 {[%emt 0:00:00]} 41. Na1 {[%emt 0:01:00]} Rb1 {[%emt 0:00:00]} 42. Nc2 {[%emt 0:00:00]} Rc8 {[%emt 0:00:30]} 0-1

[Event "TUR-ch Youth U14 2019"]
[Site "Belek"]
[Date "2019.01.26"]
[Round "11"]
[White "Guler, Muhammed Talha"]
[Black "Ozsac, Samet Harun"]
[Result "1-0"]
[ECO "B41"]
[WhiteElo "1816"]
[BlackElo "1743"]
[Annotator "NA"]
[PlyCount "85"]
[EventDate "2019.01.20"]
[EventType "swiss"]
[EventCountry "TUR"]
[SourceTitle "playchess.com"]
[Source "ChessBase"]
[SourceQuality "1"]
[TimeControl "5400+30"]

1. e4 {[%emt 0:00:30]} c5 {[%emt 0:00:30]} 2. Nf3 {[%emt 0:01:30]} e6 {[%emt 0:01:30]} 3. c4 {[%emt 0:00:30]} Nc6 {[%emt 0:11:30]} 4. d4 {[%emt 0:00:30]} cxd4 {[%emt 0:11:30] LiveBook: 140 Games} 5. Nxd4 {[%emt 0:02:30]} Nf6 {[%emt 0:00:30]} 6. Nc3 {[%emt 0:00:30]} a6 {[%emt 0:00:30]} 7. Be3 {[%emt 0:00:30]} Qc7 {[%emt 0:00:30]} 8. Be2 {[%emt 0:00:30]} Be7 {[%emt 0:01:30]} 9. Qd2 {[%emt 0:00:30]} d6 {[%emt 0:03:30]} 10. f3 {[%emt 0:04:30]} Ne5 {[%emt 0:08:30]} 11. b3 {[%emt 0:01:30]} O-O {[%emt 0:00:30] O} 12. O-O {[%emt 0:03:30]} b6 {[%emt 0:03:30]} 13. Rac1 {[%emt 0:06:30]} Bb7 {[%emt 0:02:30]} 14. Rfd1 {[%emt 0:14:30]} Rac8 {[%emt 0:06:30]} 15. Nc2 $14 {[%emt 0:06:30]} b5 {[%emt 0:22:30]} 16. cxb5 {[%emt 0:09:30]} Qxc3 {[%emt 0:07:42]} 17. Qxc3 {[%emt 0:00:30]} Rxc3 {[%emt 0:00:08]} 18. bxa6 {[%emt 0:00:30]} Ba8 {[%emt 0:08:33]} 19. Bd4 {[%emt 0:01:30]} Rc7 {[%emt 0:03:46]} 20. Ne3 {[%emt 0:03:30]} Rfc8 {[%emt 0:02:06]} 21. Rxc7 {[%emt 0:00:30]} Rxc7 {[%emt 0:00:11]} 22. b4 {[%emt 0:01:30]} Ned7 {[%emt 0:02:19]} 23. b5 {[%emt 0:01:30]} Rc8 {[%emt 0:00:31]} 24. b6 {[%emt 0:01:30]} Rb8 {[%emt 0:00:35]} 25. Rb1 {[%emt 0:02:30]} e5 {[%emt 0:00:30]} 26. Nf5 {[%emt 0:02:30]} Bd8 {[%emt 0:00:32]} 27. a7 {[%emt 0:02:30]} Rb7 {[%emt 0:00:32]} 28. Nxd6 {[%emt 0:00:30]} exd4 {[%emt 0:00:50]} 29. Nxb7 {[%emt 0:00:30]} Bxb7 {[%emt 0:00:00]} 30. Ba6 {[%emt 0:02:30]} Bxb6 {[%emt 0:00:35]} 31. Rxb6 {[%emt 0:00:30]} Nxb6 {[%emt 0:00:58]} 32. Bxb7 {[%emt 0:00:30]} Nfd7 {[%emt 0:00:21]} 33. a4 {[%emt 0:00:30]} d3 {[%emt 0:00:15]} 34. Kf2 {[%emt 0:00:30]} d2 {[%emt 0:00:34]} 35. Ke2 {[%emt 0:00:00]} Nc5 {[%emt 0:00:30]} 36. a5 {[%emt 0:01:00]} d1=Q+ {[%emt 0:00:28]} 37. Kxd1 {[%emt 0:00:00]} Nca4 {[%emt 0:00:31]} 38. axb6 {[%emt 0:00:00]} Nxb6 {[%emt 0:00:46]} 39. a8=Q+ {[%emt 0:00:30]} Nxa8 {[%emt 0:00:09]} 40. Bxa8 {[%emt 0:00:30]} Kf8 {[%emt 0:00:00]} 41. Ke2 {[%emt 0:00:00]} Ke7 {[%emt 0:00:36]} 42. Ke3 {[%emt 0:00:00]} Kf6 {[%emt 0:00:18]} 43. Bd5 {[%emt 0:00:00]} 1-0

[Event "TUR-ch Youth U14 2019"]
[Site "Belek"]
[Date "2019.01.26"]
[Round "11"]
[White "Kavri, Yusuf Eren"]
[Black "Bozyaka, Altug"]
[Result "0-1"]
[ECO "E90"]
[WhiteElo "1761"]
[BlackElo "1600"]
[Annotator "NA"]
[PlyCount "90"]
[EventDate "2019.01.20"]
[EventType "swiss"]
[EventCountry "TUR"]
[SourceTitle "playchess.com"]
[Source "ChessBase"]
[SourceQuality "1"]
[TimeControl "5400+30"]

1. d4 {[%emt 0:00:30]} Nf6 {[%emt 0:00:30]} 2. c4 {[%emt 0:00:00]} g6 {[%emt 0:00:30]} 3. Nc3 {[%emt 0:00:00]} Bg7 {[%emt 0:00:30]} 4. e4 {[%emt 0:00:30]} d6 {[%emt 0:00:30]} 5. h3 {[%emt 0:00:30]} O-O {[%emt 0:01:30]} 6. Bg5 {[%emt 0:01:30]} Nbd7 {[%emt 0:04:30]} 7. Nf3 {[%emt 0:01:30]} e5 {[%emt 0:03:30]} 8. d5 {[%emt 0:03:30]} h6 {[%emt 0:04:30]} 9. Be3 {[%emt 0:02:30]} a5 {[%emt 0:08:30]} 10. Be2 {[%emt 0:05:30]} b6 {[%emt 0:05:30]} 11. O-O {[%emt 0:07:30]} Nc5 {[%emt 0:01:30]} 12. Nd2 {[%emt 0:03:30]} Ne8 {[%emt 0:03:30]} 13. a3 {[%emt 0:13:30]} f5 {[%emt 0:13:30]} 14. exf5 {[%emt 0:12:30]} gxf5 {[%emt 0:01:30]} 15. f4 {[%emt 0:03:30]} e4 {[%emt 0:10:30]} 16. Nb3 {[%emt 0:08:30]} Bd7 {[%emt 0:08:30]} 17. Nxc5 {[%emt 0:10:30]} bxc5 {[%emt 0:06:30]} 18. Qd2 {[%emt 0:03:42]} Nf6 {[%emt 0:02:30]} 19. Rab1 {[%emt 0:01:26]} Rb8 {[%emt 0:03:46]} 20. Qc2 {[%emt 0:02:44]} Qe8 {[%emt 0:01:49]} 21. a4 {[%emt 0:03:59]} Qd8 {[%emt 0:07:53]} 22. Nb5 {[%emt 0:01:33]} Be8 {[%emt 0:00:59]} 23. Bd2 {[%emt 0:01:45]} Ra8 {[%emt 0:00:53]} 24. Bc3 {[%emt 0:00:54]} Nd7 {[%emt 0:03:03]} 25. Qd2 {[%emt 0:01:29]} Bxc3 {[%emt 0:00:47]} 26. Qxc3 {[%emt 0:00:37]} Nb6 {[%emt 0:02:38]} 27. Ra1 {[%emt 0:00:43]} Kh7 {[%emt 0:01:23]} 28. b3 {[%emt 0:00:46]} Bxb5 {[%emt 0:01:58]} 29. axb5 {[%emt 0:01:25]} a4 {[%emt 0:00:13]} 30. bxa4 {[%emt 0:00:53]} Nxa4 {[%emt 0:00:54]} 31. Qc2 {[%emt 0:00:55]} Nb6 {[%emt 0:00:14]} 32. Qc3 {[%emt 0:00:58]} Qh4 {[%emt 0:00:36]} 33. Kh2 {[%emt 0:00:54]} Rxa1 {[%emt 0:00:34]} 34. Qxa1 {[%emt 0:01:20]} Ra8 {[%emt 0:00:18]} 35. Qb2 {[%emt 0:00:09]} Nd7 {[%emt 0:00:42]} 36. g3 {[%emt 0:01:30]} Qf6 {[%emt 0:00:17]} 37. Rb1 {[%emt 0:01:39]} Qd4 {[%emt 0:00:42]} 38. Kg2 {[%emt 0:02:02]} Nb6 {[%emt 0:00:30]} 39. g4 {[%emt 0:00:30]} Qe3 {[%emt 0:00:30]} 40. Qf6 {[%emt 0:00:30]} Qxe2+ {[%emt 0:00:30]} 41. Kg1 {[%emt 0:00:30]} Qe3+ {[%emt 0:00:20]} 42. Kf1 {[%emt 0:01:46]} Qd3+ {[%emt 0:00:27]} 43. Kg1 {[%emt 0:00:25]} Qxb1+ {[%emt 0:00:31]} 44. Kg2 {[%emt 0:00:30]} Ra2+ {[%emt 0:00:00]} 45. Kg3 {[%emt 0:00:10]} Qe1# {[%emt 0:00:00]} 0-1

[Event "TUR-ch Youth U14 2019"]
[Site "Belek"]
[Date "2019.01.26"]
[Round "11"]
[White "Basara, Arda"]
[Black "Yagci, Yusuf Batin"]
[Result "1-0"]
[ECO "E61"]
[WhiteElo "1737"]
[BlackElo "1635"]
[Annotator "NA"]
[PlyCount "155"]
[EventDate "2019.01.20"]
[EventType "swiss"]
[EventCountry "TUR"]
[SourceTitle "playchess.com"]
[Source "ChessBase"]
[SourceQuality "1"]
[TimeControl "5400+30"]

1. d4 {[%emt 0:00:30]} Nf6 {[%emt 0:00:30]} 2. Bf4 {[%emt 0:00:30]} g6 {[%emt 0:00:30]} 3. Nf3 {[%emt 0:00:30]} Bg7 {[%emt 0:00:00]} 4. e3 {[%emt 0:00:30]} O-O {[%emt 0:00:00]} 5. c4 {[%emt 0:03:30]} d6 {[%emt 0:00:30]} 6. h3 {[%emt 0:09:30]} Nbd7 {[%emt 0:00:30]} 7. Nc3 {[%emt 0:01:30]} Re8 {[%emt 0:08:30]} 8. Be2 {[%emt 0:05:30]} c6 {[%emt 0:00:30]} 9. O-O {[%emt 0:00:30]} Qb6 {[%emt 0:02:30]} 10. Qc2 {[%emt 0:13:30]} e5 {[%emt 0:02:30]} 11. Bh2 {[%emt 0:01:30]} exd4 {[%emt 0:04:30]} 12. exd4 {[%emt 0:20:30]} d5 {[%emt 0:07:30]} 13. c5 {[%emt 0:00:30]} Qd8 {[%emt 0:00:30]} 14. Bd3 {[%emt 0:00:30]} Nf8 {[%emt 0:00:30]} 15. Be5 {[%emt 0:00:30]} Ne6 {[%emt 0:05:30]} 16. Rfe1 {[%emt 0:12:30]} Nh5 {[%emt 0:04:30]} 17. Ne2 {[%emt 0:05:30]} Bxe5 {[%emt 0:15:30]} 18. dxe5 {[%emt 0:00:30]} Qa5 {[%emt 0:00:30]} 19. Rac1 {[%emt 0:00:30]} Nhf4 {[%emt 0:00:30]} 20. Nxf4 {[%emt 0:00:30]} Nxf4 {[%emt 0:00:30]} 21. a3 {[%emt 0:00:30]} Bd7 {[%emt 0:00:30]} 22. Re3 {[%emt 0:00:30]} Qc7 {[%emt 0:00:30]} 23. Rce1 {[%emt 0:00:30]} Re7 {[%emt 0:00:30]} 24. Bf1 {[%emt 0:00:30]} Rae8 {[%emt 0:00:30]} 25. g3 {[%emt 0:00:30]} Nh5 {[%emt 0:00:30]} 26. Qc3 {[%emt 0:00:30]} Ng7 {[%emt 0:00:30]} 27. Nd4 {[%emt 0:00:30]} h5 {[%emt 0:00:30]} 28. f4 {[%emt 0:00:30]} Qc8 {[%emt 0:00:30]} 29. Kh2 {[%emt 0:00:30]} Bf5 {[%emt 0:00:30]} 30. Bg2 {[%emt 0:00:30]} Qd7 {[%emt 0:00:30]} 31. b4 {[%emt 0:00:30]} Rc8 {[%emt 0:00:30]} 32. a4 {[%emt 0:00:30]} a6 {[%emt 0:00:30]} 33. Qb3 {[%emt 0:00:30]} Be6 {[%emt 0:00:30]} 34. Qb2 {[%emt 0:00:30]} Ne8 {[%emt 0:00:30]} 35. Qe2 {[%emt 0:00:30]} Ng7 {[%emt 0:00:30]} 36. Rd1 {[%emt 0:00:30]} Rce8 {[%emt 0:00:30]} 37. b5 {[%emt 0:00:30]} axb5 {[%emt 0:00:30]} 38. axb5 {[%emt 0:00:30]} Nf5 {[%emt 0:00:30]} 39. Rb3 {[%emt 0:00:30]} Nxd4 {[%emt 0:00:30]} 40. Rxd4 {[%emt 0:00:30]} Ra8 {[%emt 0:00:30]} 41. Qb2 {[%emt 0:00:30]} Ra5 {[%emt 0:00:30]} 42. Rdb4 {[%emt 0:00:30]} Qc7 {[%emt 0:00:30]} 43. Qd4 {[%emt 0:00:30]} Ra2 {[%emt 0:00:30]} 44. Rb2 {[%emt 0:00:30]} Ra5 {[%emt 0:00:30]} 45. b6 {[%emt 0:00:30]} Qb8 {[%emt 0:00:30]} 46. Ra4 {[%emt 0:00:30]} Rxa4 {[%emt 0:00:30]} 47. Qxa4 {[%emt 0:00:30]} Re8 {[%emt 0:00:30]} 48. Ra2 {[%emt 0:00:30]} Rd8 {[%emt 0:00:30]} 49. Qd4 {[%emt 0:00:30]} Qc8 {[%emt 0:00:30]} 50. Ra7 {[%emt 0:00:30]} Qb8 {[%emt 0:00:30]} 51. Bf1 {[%emt 0:00:30]} Kg7 {[%emt 0:00:30]} 52. h4 {[%emt 0:00:30]} Qc8 {[%emt 0:00:30]} 53. Bd3 {[%emt 0:00:30]} Qb8 {[%emt 0:00:30]} 54. Be2 {[%emt 0:00:30]} Bf5 {[%emt 0:00:30]} 55. Ba6 {[%emt 0:19:03]} Bc8 {[%emt 0:34:30]} 56. e6+ {[%emt 0:01:09]} f6 {[%emt 0:00:30]} 57. Qa4 {[%emt 0:00:04]} Kh6 {[%emt 0:00:32]} 58. Qd4 {[%emt 0:01:24]} Kg7 {[%emt 0:00:12]} 59. Qa4 {[%emt 0:00:00]} d4 {[%emt 0:03:12]} 60. Qxc6 {[%emt 0:00:45]} d3 {[%emt 0:00:13]} 61. Bxb7 {[%emt 0:00:40]} d2 {[%emt 0:00:10]} 62. Bxc8+ {[%emt 0:00:34]} Qxa7 {[%emt 0:00:58]} 63. bxa7 {[%emt 0:00:14]} d1=Q {[%emt 0:00:11]} 64. a8=Q {[%emt 0:00:30]} Rd2+ {[%emt 0:00:00]} 65. Qg2 {[%emt 0:00:00]} Kh6 {[%emt 0:00:07]} 66. e7 {[%emt 0:00:34]} Rxg2+ {[%emt 0:00:11]} 67. Qxg2 {[%emt 0:00:12]} Qe1 {[%emt 0:00:00]} 68. c6 {[%emt 0:01:37]} Qxe7 {[%emt 0:00:05]} 69. Qd2 {[%emt 0:00:18]} f5 {[%emt 0:00:07]} 70. Bd7 {[%emt 0:00:17]} Qc5 {[%emt 0:00:07]} 71. Qe2 {[%emt 0:00:19]} Qd6 {[%emt 0:00:17]} 72. Kh3 {[%emt 0:00:53]} Qd5 {[%emt 0:00:08]} 73. Qg2 {[%emt 0:01:03]} Qd1 {[%emt 0:00:13]} 74. Be6 {[%emt 0:00:00]} Qc1 {[%emt 0:00:41]} 75. Bd5 {[%emt 0:00:07]} Qc5 {[%emt 0:00:00]} 76. Qb2 {[%emt 0:00:27]} Kh7 {[%emt 0:00:10]} 77. Qb7+ {[%emt 0:00:15]} Kh6 {[%emt 0:00:13]} 78. Bg8 {[%emt 0:00:29]} 1-0